bitfinex/quotes_ETHUSD_20241018
["timestamp","ask_amount","ask_price","bid_price","bid_amount"]
[1729273746980,0.826,2648.7,2647.8,0.8178]
[1729273747295,0.826,2648.7,2648.0,0.8178]
[1729273747511,0.826,2648.7,2648.1,0.55]
[1729273747692,0.82513258,2648.7,2648.1,0.55]
[1729273748898,0.82513258,2648.7,2648.3,0.55]
[1729273750027,0.82513258,2648.7,2648.2,0.55]
[1729273755747,0.82513258,2648.7,2648.2,0.9276]
[1729273757551,0.82513258,2648.7,2648.1,0.9276]
[1729273757721,0.82513258,2648.7,2648.3,0.55]
[1729273758850,0.82513258,2648.7,2647.7,4.26549551]
[1729273759012,0.82513258,2648.7,2647.4,0.7676]
[1729273759554,0.8029,2648.6,2647.2,0.7858]
[1729273759845,0.8029,2648.5,2647.2,0.7858]
[1729273760056,0.8029,2648.5,2647.2,1.1634]
[1729273760344,0.8029,2648.5,2647.2,1.75412538]
[1729273760754,0.8029,2648.3,2647.2,0.59072538]
[1729273761925,0.8029,2648.3,2647.3,0.55]
[1729273762221,0.8029,2648.3,2647.2,0.59072538]
[1729273762546,0.8029,2648.3,2646.9,5.33744917]
[1729273762547,0.8029,2648.3,2646.9,4.55164917]
[1729273762749,0.7988,2648.1,2646.9,4.1576]
[1729273763259,0.7988,2648.1,2646.9,3.78]
[1729273763627,0.8186,2648.0,2646.9,3.78]
[1729273763821,0.8186,2648.0,2647.1,0.55]
[1729273764023,0.8186,2647.9,2647.1,1.283]
[1729273764732,0.8186,2647.9,2646.9,3.0]
[1729273764951,0.8186,2647.9,2646.9,3.55]
[1729273765157,0.8186,2647.9,2646.9,3.0]
[1729273765660,0.8186,2647.9,2646.8,0.55]
[1729273767344,0.8186,2647.9,2646.6,3.58726379]
[1729273767559,0.8186,2647.9,2646.7,1.63772638]
[1729273770649,0.8186,2647.9,2646.9,0.55]
[1729273771471,0.59085667,2648.9,2647.5,0.55]
[1729273771673,0.939437,2649.0,2647.9,0.55]
[1729273771873,0.939437,2649.0,2648.0,2.06814945]
[1729273772104,0.939437,2649.0,2648.1,0.26181494]
[1729273772239,0.939437,2649.0,2647.9,0.55]
[1729273772440,0.939437,2649.0,2648.1,0.55]
[1729273772747,0.939437,2649.0,2648.1,1.05717982]
[1729273772946,0.939437,2649.0,2648.3,0.55]
[1729273773453,0.939437,2649.0,2648.3,0.80808659]
[1729273775454,0.939437,2649.0,2647.9,0.55]
[1729273782175,0.939437,2649.0,2647.9,1.10483169]
[1729273785355,0.939437,2649.0,2648.0,1.10380539]
[1729273785543,0.939437,2649.0,2648.0,0.55483169]
[1729273788048,0.939437,2649.0,2647.9,0.55]
[1729273789082,0.939437,2649.0,2647.9,1.10483169]
[1729273789282,0.939437,2649.0,2648.0,0.19229317]
[1729273790288,0.939437,2649.0,2648.0,0.74712486]
[1729273792901,0.939437,2649.0,2648.1,0.55483169]
[1729273798902,0.939437,2649.0,2648.8,3.0]
[1729273799405,0.939437,2649.0,2648.1,0.55483169]
[1729273802378,0.939437,2649.0,2648.2,0.55]
[1729273803511,0.939437,2649.0,2648.2,1.90073169]
[1729273803512,0.19688865,2649.0,2648.2,1.90073169]
[1729273803664,0.04837898,2649.0,2648.4,0.55]
[1729273808328,0.04837898,2649.0,2648.4,1.10483169]
[1729273808927,0.04837898,2649.0,2648.5,0.55483169]
[1729273809640,1.57881698,2650.2,2648.6,0.55]
[1729273809937,0.8272,2649.3,2648.8,0.55]
[1729273811195,0.8272,2649.3,2648.8,1.10483169]
[1729273813963,0.8272,2649.3,2648.9,0.55483169]
[1729273814636,0.8272,2649.3,2649.0,0.55]
[1729273814873,0.7977,2650.2,2649.0,0.55]
[1729273815141,0.7977,2650.1,2649.0,0.55]
[1729273817128,0.7977,2650.1,2649.0,0.55483169]
[1729273817346,0.7977,2650.1,2649.1,1.88123169]
[1729273817839,0.7977,2650.1,2649.1,1.10483169]
[1729273818046,0.7977,2650.1,2649.1,0.55]
[1729273818262,0.7977,2650.1,2648.6,3.0]
[1729273818486,0.798,2649.9,2648.6,6.06264]
[1729273818753,0.798,2649.7,2648.6,6.06264]
[1729273819407,0.798,2649.7,2648.7,0.55]
[1729273822452,1.57881698,2649.6,2648.5,7.29]
[1729273822770,1.57881698,2649.6,2647.9,1.17019241]
[1729273822771,0.798,2649.3,2648.2,1.14180562]
[1729273823056,0.798,2649.1,2648.2,0.58697393]
[1729273823425,0.798,2649.1,2647.8,7.29]
[1729273823426,2.37681698,2649.0,2647.6,0.55483169]
[1729273823634,0.798,2648.8,2647.6,0.55483169]
[1729273823831,0.798,2648.7,2647.6,0.55483169]
[1729273824402,0.798,2648.7,2647.7,0.0284847]
[1729273824726,0.798,2648.7,2647.8,0.55483169]
[1729273828534,1.57881698,2648.8,2647.8,0.55483169]
[1729273828535,0.8241,2648.6,2647.8,0.55483169]
[1729273832260,0.7675,2648.4,2647.8,0.55483169]
[1729273832563,1.57881698,2648.9,2647.8,0.55483169]
[1729273832564,0.7675,2648.2,2647.8,0.55483169]
[1729273833674,0.7675,2648.2,2647.9,0.3776]
[1729273833985,0.7675,2648.2,2647.8,0.55483169]
[1729273836086,0.7675,2648.2,2647.4,1.10483169]
[1729273838056,0.7675,2648.2,2647.6,0.55]
[1729273838372,0.7675,2648.2,2647.7,0.55483169]
[1729273842292,0.7675,2648.2,2647.8,0.55]
[1729273842873,0.7637,2648.9,2647.8,1.88213169]
[1729273843224,0.7637,2648.7,2648.2,3.0]
[1729273843346,0.7637,2648.7,2648.2,0.355]
[1729273843544,0.7637,2648.7,2648.0,0.55]
[1729273843981,0.7637,2648.7,2648.1,1.10483169]
[1729273844191,0.7637,2648.7,2648.1,0.55483169]
[1729273844354,0.07168487,2648.6,2648.2,0.55]
[1729273844554,0.7637,2648.7,2648.2,0.55]
[1729273844877,0.07168487,2648.6,2648.2,0.55]
[1729273845878,0.7637,2648.7,2648.2,0.55]
[1729273846892,0.7637,2648.7,2648.2,1.10483169]
[1729273848397,0.7991,2649.6,2648.4,0.55]
[1729273848602,0.7991,2649.5,2648.5,0.55483169]
[1729273848890,0.8692758,2649.5,2648.6,0.55]
[1729273850373,0.8692758,2649.5,2648.2,3.0]
[1729273850591,0.8692758,2649.5,2648.3,0.55]
[1729273850895,0.7991,2649.5,2648.3,0.55483169]
[1729273851094,0.7991,2649.5,2648.3,1.72250486]
[1729273852013,0.7991,2649.5,2648.4,0.55]
[1729273852287,0.88924553,2649.4,2648.4,0.55]
[1729273853466,0.88924553,2649.4,2648.4,1.10483169]
[1729273856914,0.88924553,2649.4,2648.6,0.55]
[1729273857486,0.88924553,2649.4,2648.6,1.10483169]
[1729273859456,0.88924553,2649.4,2648.4,0.55]
[1729273859688,0.88924553,2649.4,2648.6,0.55]
[1729273865976,0.88924553,2649.4,2648.5,0.54776732]
[1729273866309,0.88924553,2649.4,2648.5,0.55483169]
[1729273867297,0.7588,2649.3,2648.5,0.55483169]
[1729273867676,0.06545525,2649.2,2648.5,0.55483169]
[1729273867866,0.7588,2649.1,2648.5,0.55483169]
[1729273868066,0.06528526,2649.0,2648.5,0.55483169]
[1729273868366,0.7588,2648.9,2648.0,0.55]
[1729273868566,0.7588,2648.9,2648.2,0.55]
[1729273869102,0.7588,2648.9,2648.2,1.10483169]
[1729273869404,0.7588,2648.9,2648.4,0.55]
[1729273869705,1.57881698,2649.5,2648.7,0.7971]
[1729273869706,0.7588,2649.5,2648.7,0.7971]
[1729273869914,0.06291033,2648.8,2648.7,1.3471]
[1729273870070,0.7588,2649.5,2648.9,0.55]
[1729273870423,0.7588,2649.5,2648.9,1.09958916]
[1729273870765,1.96826589,2650.4,2649.1,0.55]
[1729273870766,0.7588,2650.2,2649.1,0.55]
[1729273871078,0.81857223,2650.1,2649.1,0.55]
[1729273871387,0.81857223,2650.1,2649.3,0.55]
[1729273871565,0.7588,2650.1,2649.3,0.55]
[1729273873172,0.7699,2649.9,2649.3,0.55]
[1729273873416,0.7699,2649.9,2649.2,0.18966892]
[1729273873576,0.7699,2649.9,2648.9,3.0]
[1729273873778,0.7699,2649.9,2648.9,0.3776]
[1729273873976,0.7699,2649.9,2648.7,0.8169]
[1729273874204,0.7699,2649.9,2648.8,7.83958916]
[1729273874799,0.7699,2649.9,2648.6,0.54958916]
[1729273874981,0.8099,2649.7,2648.6,0.54958916]
[1729273875183,0.8099,2649.7,2648.7,0.55]
[1729273875413,0.8099,2649.7,2648.9,0.55]
[1729273876715,0.8099,2649.7,2648.8,0.54958916]
[1729273877783,0.8099,2649.7,2648.9,0.55]
[1729273878124,0.8099,2649.7,2648.9,1.09958916]
[1729273878323,0.8099,2649.7,2649.0,0.8093]
[1729273878475,0.8099,2649.7,2649.1,0.74088892]
[1729273878680,0.05961431,2649.6,2649.1,0.74088892]
[1729273878920,0.8099,2649.7,2649.1,1.29047808]
[1729273879220,0.8099,2649.7,2649.3,0.55]
[1729273882009,0.8099,2649.7,2649.2,0.54958916]
[1729273882010,0.8099,2649.7,2649.6,3.0]
[1729273882209,0.8099,2649.7,2649.2,0.55]
[1729273882823,0.05972491,2649.6,2649.2,0.55]
[1729273883253,0.8099,2649.7,2649.2,0.55]
[1729273883452,0.8099,2649.7,2648.7,0.54958916]
[1729273883744,0.8286,2649.6,2648.7,0.54958916]
[1729273884848,0.8286,2649.6,2648.8,0.55]
[1729273885478,0.8286,2649.6,2648.8,0.54958916]
[1729273885773,0.8286,2649.6,2648.9,0.55]
[1729273886175,0.8286,2649.6,2649.0,0.55]
[1729273886349,0.8286,2649.6,2649.0,1.87788916]
[1729273887295,0.8322,2650.3,2649.0,1.87788916]
[1729273887599,0.89031175,2650.2,2649.0,1.87788916]
[1729273889198,0.89031175,2650.2,2649.0,4.87788916]
[1729273889412,0.89031175,2650.2,2649.0,1.87788916]
[1729273896816,0.89031175,2650.2,2649.2,0.55]
[1729273897016,0.75,2650.1,2649.4,0.55]
[1729273897213,0.75,2650.1,2649.5,0.07546677]
[1729273897517,0.80794189,2650.0,2649.0,1.87788916]
[1729273900794,0.80794189,2650.0,2649.1,0.5489737]
[1729273901010,0.05794189,2650.0,2649.4,0.55]
[1729273901312,0.8284,2650.2,2649.6,0.55]
[1729273901483,0.8284,2650.2,2649.6,1.09958916]
[1729273901683,0.8284,2650.2,2649.8,0.55]
[1729273903409,0.8284,2650.2,2649.6,0.55]
[1729273904506,0.8311,2650.5,2649.8,0.55]
[1729273904806,0.8311,2650.5,2650.1,0.8192]
[1729273904984,0.8311,2650.5,2650.2,0.55]
[1729273905419,0.8311,2651.3,2650.2,0.55]
[1729273905628,0.8311,2651.1,2650.2,1.09958916]
[1729273906429,0.8311,2651.1,2650.3,0.8195]
[1729273906593,0.8311,2651.1,2650.4,0.55]
[1729273906988,0.05586469,2651.0,2650.4,0.55]
[1729273907215,0.8311,2651.1,2650.4,0.55]
[1729273910109,0.8311,2651.1,2649.9,8.0609]
[1729273910354,0.8311,2651.1,2650.0,0.86104892]
[1729273910510,0.8311,2651.1,2650.0,1.41063808]
[1729273911657,0.8311,2651.1,2650.1,0.55]
[1729273912938,0.8311,2651.1,2650.1,4.09958916]
[1729273913136,0.8311,2651.1,2650.1,0.55]
[1729273913463,0.8311,2651.1,2650.3,1.3281]
[1729273913951,0.8311,2651.1,2650.5,0.55]
[1729273914324,0.8311,2651.1,2651.0,3.0]
[1729273914527,0.8311,2651.1,2650.5,0.55]
[1729273917521,0.82951662,2651.1,2650.5,0.55]
[1729273918058,0.82951662,2651.1,2650.7,0.55]
[1729273918629,0.82951662,2651.1,2650.9,0.55]
[1729273918834,0.82951662,2651.1,2650.7,0.55]
[1729273920021,0.1311653,2651.7,2650.7,1.3688]
[1729273920223,0.1311653,2651.7,2650.9,0.55]
[1729273920519,0.80231395,2651.6,2651.3,3.0]
[1729273920719,0.7523,2651.6,2650.9,0.55]
[1729273925208,0.7523,2651.6,2651.1,0.55]
[1729273925544,0.7523,2651.6,2650.9,0.55]
[1729273928671,0.7523,2651.6,2651.1,0.55]
[1729273929173,0.7523,2651.6,2650.9,0.55]
[1729273929753,0.7523,2651.6,2650.9,1.1369225]
[1729273930402,0.7523,2651.6,2651.1,0.55]
[1729273930910,0.7523,2651.6,2651.3,0.55]
[1729273931485,0.7523,2651.6,2650.8,0.19183892]
[1729273931811,0.7523,2651.6,2650.9,0.55]
[1729273932401,0.7523,2651.6,2650.9,1.1369225]
[1729273932704,0.7523,2651.6,2651.1,0.55]
[1729273932909,0.7523,2651.6,2650.9,0.55]
[1729273934601,0.7523,2651.6,2650.9,0.96194389]
[1729273936410,0.7523,2651.6,2650.7,3.3776]
[1729273936785,0.7523,2651.6,2650.7,3.9645225]
[1729273937108,0.7523,2651.6,2650.8,0.5869225]
[1729273938054,0.7523,2651.6,2650.9,0.55]
[1729273940255,0.7523,2651.6,2650.8,0.55]
[1729273941268,0.7523,2651.6,2650.8,1.67176]
[1729273942280,0.7523,2651.6,2650.9,0.5869225]
[1729273943738,0.7523,2651.6,2651.0,0.55]
[1729273944469,0.7523,2651.6,2651.2,0.55]
[1729273944887,0.7523,2651.6,2651.0,0.55]
[1729273945035,0.7523,2651.6,2650.8,1.49936]
[1729273945036,0.7523,2651.6,2650.9,0.55]
[1729273945367,0.7523,2651.6,2650.9,4.131096]
[1729273945578,0.7523,2651.6,2650.9,0.55]
[1729273945876,0.7523,2651.6,2650.8,0.55]
[1729273948032,0.7523,2651.6,2650.9,0.5869225]
[1729273950229,0.7523,2651.6,2650.9,0.66235884]
[1729273951474,0.7523,2651.6,2651.0,0.55]
[1729273951674,0.7523,2651.6,2651.1,0.5869225]
[1729273952039,0.04663311,2651.5,2651.1,0.5869225]
[1729273952977,0.7982,2651.4,2651.1,0.5869225]
[1729273953276,0.04646341,2651.3,2651.1,0.5869225]
[1729273953837,0.04646341,2651.3,2651.0,0.62543263]
[1729273954042,0.04646341,2651.3,2651.0,0.5869225]
[1729273954344,0.7982,2651.4,2651.1,0.5869225]
[1729273954544,0.04646341,2651.3,2650.8,0.55]
[1729273954745,0.7982,2651.2,2651.0,0.55]
[1729273961590,0.04530381,2651.1,2651.0,0.55]
[1729273963476,0.04530381,2651.1,2650.6,0.5869225]
[1729273963683,0.04530381,2651.1,2650.7,0.55]
[1729273963999,0.7982,2651.2,2650.8,1.1369225]
[1729273964597,0.7982,2651.2,2650.8,0.5869225]
[1729273966060,0.04397047,2651.1,2650.8,0.5869225]
[1729273966377,0.7982,2651.2,2650.8,0.5869225]
[1729273966967,0.8289,2651.0,2650.5,0.55]
[1729273967177,0.8289,2651.0,2650.5,1.73045225]
[1729273967502,0.8289,2651.0,2650.5,0.55]
[1729273968157,0.8289,2651.0,2650.4,0.9645225]
[1729273968359,0.8289,2651.0,2650.1,0.39354685]
[1729273968567,0.8041,2650.9,2649.9,8.043]
[1729273968798,0.8041,2650.9,2649.9,1.3399225]
[1729273968985,0.8041,2650.9,2650.0,0.5869225]
[1729273969154,0.8174,2650.9,2650.0,0.5869225]
[1729273969358,0.04356859,2650.8,2650.0,0.5869225]
[1729273969682,0.7987,2650.8,2650.1,0.55]
[1729273970001,0.7987,2650.8,2650.3,0.55]
[1729273970360,0.7987,2650.8,2650.3,1.1369225]
[1729273970563,0.04348371,2650.7,2650.3,1.1369225]
[1729273970870,0.7987,2650.8,2650.3,1.1369225]
[1729273971080,0.04335117,2650.6,2650.3,1.1369225]
[1729273971252,0.04343606,2650.7,2650.3,1.1369225]
[1729273971456,0.04326627,2650.5,2650.3,1.1369225]
[1729273971689,0.7987,2650.8,2650.3,1.1369225]
[1729273971893,0.04318136,2650.4,2650.3,1.1369225]
[1729273972088,0.7987,2650.8,2650.3,1.1369225]
[1729273972501,0.04343606,2650.7,2650.3,1.1369225]
[1729273973002,0.7987,2650.8,2650.3,1.1369225]
[1729273973003,0.04335117,2650.6,2650.3,1.1369225]
[1729273973172,0.7987,2650.8,2650.3,1.1369225]
[1729273973500,0.04343606,2650.7,2650.3,1.1369225]
[1729273973881,0.7987,2650.8,2650.3,1.1369225]
[1729273974086,0.04335117,2650.6,2650.3,1.1369225]
[1729273974269,0.04343606,2650.7,2650.3,1.1369225]
[1729273974599,0.7987,2650.8,2650.3,1.1369225]
[1729273974797,0.04343606,2650.7,2650.3,1.1369225]
[1729273974976,0.7987,2650.8,2650.3,1.1369225]
[1729273975295,0.04343606,2650.7,2650.3,1.1369225]
[1729273975710,0.7987,2650.8,2650.3,1.1369225]
[1729273975865,0.04335117,2650.6,2650.3,1.1369225]
[1729273976065,0.04343606,2650.7,2650.3,1.1369225]
[1729273976270,0.7987,2650.8,2650.3,1.1369225]
[1729273976495,0.04335117,2650.6,2650.3,1.1369225]
[1729273976673,0.04343606,2650.7,2650.3,1.1369225]
[1729273976998,0.04335117,2650.6,2650.3,1.1369225]
[1729273977300,0.7987,2650.8,2650.3,1.1369225]
[1729273977607,0.04343606,2650.7,2650.3,1.1369225]
[1729273977901,0.7987,2650.8,2650.3,1.1369225]
[1729273978107,0.04335117,2650.6,2650.0,0.55]
[1729273978257,0.04343606,2650.7,2650.2,0.55]
[1729273978576,0.7603,2651.1,2650.2,0.55]
[1729273980603,0.7603,2651.1,2650.2,1.1369225]
[1729273981590,0.7603,2651.1,2650.3,0.5869225]
[1729273981915,0.80471923,2651.0,2650.3,0.5869225]
[1729273983068,0.80471923,2651.0,2650.4,0.55]
[1729273983271,0.80471923,2651.0,2650.5,0.5869225]
[1729273985208,0.7585,2650.7,2649.4,0.3776]
[1729273985414,0.7585,2650.7,2649.6,0.0188707]
[1729273985415,0.7585,2650.5,2649.6,0.0188707]
[1729273985594,0.0430774,2650.4,2649.5,0.04802205]
[1729273985765,0.7585,2650.3,2649.5,0.04802205]
[1729273985966,0.04290757,2650.2,2649.5,0.04802205]
[1729273986216,0.7585,2650.3,2649.5,0.04802205]
[1729273986690,0.04283823,2650.2,2649.5,0.10395197]
[1729273987066,0.7585,2650.3,2649.5,0.10395197]
[1729273987268,0.7585,2650.3,2649.5,0.53002717]
[1729273987478,0.7585,2650.3,2649.6,0.55]
[1729273987827,0.04283823,2650.2,2649.6,0.55]
[1729273988186,0.7585,2650.3,2649.6,0.55]
[1729273988427,0.04283823,2650.2,2649.6,0.55]
[1729273988637,0.04283823,2650.2,2649.7,0.03102789]
[1729273988786,0.7585,2650.3,2649.7,0.03102789]
[1729273989116,0.7585,2650.1,2649.7,0.55]
[1729273990104,0.7585,2650.1,2649.5,0.55]
[1729273990723,0.7585,2650.1,2649.7,0.55]
[1729273990927,0.7585,2650.1,2649.5,0.55]
[1729273991099,0.7585,2650.1,2649.7,0.55]
[1729273991504,0.7585,2650.1,2649.5,0.55]
[1729273991700,0.7585,2650.1,2649.5,0.64435072]
[1729273994204,0.765,2650.8,2649.7,0.55]
[1729273994517,0.23782321,2651.0,2649.7,0.55]
[1729273994518,0.765,2650.6,2649.7,0.55]
[1729273997423,0.765,2650.6,2649.7,1.06439592]
[1729273997653,0.765,2650.6,2649.7,0.55]
[1729273998049,0.7641,2650.4,2649.7,0.55]
[1729273998261,0.7641,2650.4,2649.6,0.55]
[1729273998949,0.7641,2650.4,2649.8,0.55]
[1729273999265,0.04286683,2650.3,2649.8,0.55]
[1729273999466,0.7592,2650.2,2649.8,0.55]
[1729273999922,0.7592,2650.2,2649.6,0.55]
[1729274006077,0.7592,2650.2,2649.4,0.55]
[1729274006250,0.7592,2650.2,2649.6,0.55]
[1729274006691,1.57351291,2650.9,2649.6,0.55]
[1729274007086,1.61600424,2650.8,2649.6,0.55]
[1729274007251,1.57271291,2650.7,2649.6,0.55]
[1729274007462,2.01299867,2650.8,2649.6,0.55]
[1729274007673,0.04299587,2650.6,2649.6,0.55]
[1729274007879,2.21408797,2650.7,2649.2,0.96402676]
[1729274008039,0.04291097,2650.5,2649.3,0.02130302]
[1729274008244,2.01261831,2650.5,2649.3,0.08923797]
[1729274009688,0.7644,2650.4,2649.3,0.08923797]
[1729274010042,0.04270647,2650.3,2649.3,0.08923797]
[1729274010250,0.7592,2650.2,2649.3,0.08923797]
[1729274010885,0.7592,2650.0,2649.3,0.08923797]
[1729274011288,0.04236676,2649.9,2649.3,0.08923797]
[1729274011589,0.04236676,2649.9,2649.3,0.55]
[1729274011789,0.1969529,2650.5,2649.7,3.0]
[1729274011946,0.04228181,2649.8,2649.3,0.55]
[1729274012292,2.16648191,2650.5,2649.5,0.13405428]
[1729274012447,0.21664819,2650.4,2649.5,0.13405428]
[1729274012650,0.25943958,2650.4,2649.5,0.13405428]
[1729274013070,0.25943958,2650.4,2649.4,0.1532853]
[1729274013697,2.22896859,2650.4,2649.4,0.15315517]
[1729274013900,2.22896859,2650.4,2648.8,1.1979]
[1729274013901,2.22896859,2650.4,2648.9,0.55]
[1729274014050,0.22289686,2650.3,2648.9,0.55529734]
[1729274014455,0.80083918,2650.2,2648.9,0.55529734]
[1729274015164,0.7583,2650.2,2648.9,0.55529734]
[1729274015570,0.807,2650.0,2648.9,0.55529734]
[1729274016000,0.807,2649.8,2648.9,0.55529734]
[1729274016201,0.807,2649.8,2649.1,0.55]
[1729274016384,0.807,2649.8,2649.2,0.00562046]
[1729274016704,0.8132,2649.6,2649.2,0.00562046]
[1729274017504,0.8132,2649.6,2649.2,0.03314376]
[1729274019671,0.04176247,2649.5,2649.2,0.03314376]
[1729274019872,0.8132,2649.6,2649.2,0.03314376]
[1729274023760,0.8132,2649.6,2649.3,0.55]
[1729274024005,0.8132,2650.3,2649.4,0.03377932]
[1729274024157,0.04169525,2649.5,2649.4,0.03377932]
[1729274024362,0.8132,2649.8,2649.3,0.55]
[1729274024670,0.04186517,2649.7,2649.4,0.0271485]
[1729274025107,0.8132,2649.8,2649.4,0.0271485]
[1729274025507,0.04186517,2649.7,2649.4,0.0271485]
[1729274025896,0.8132,2649.8,2649.4,0.0271485]
[1729274026259,0.04186517,2649.7,2649.4,0.0271485]
[1729274026774,0.8132,2649.8,2649.4,0.0271485]
[1729274027189,0.04186517,2649.7,2649.4,0.0271485]
[1729274027386,0.8132,2649.8,2649.4,0.0271485]
[1729274027777,0.04186517,2649.7,2649.4,0.0271485]
[1729274028087,0.8132,2649.8,2649.4,0.0271485]
[1729274028677,0.04188252,2649.7,2649.4,0.0271485]
[1729274029103,0.8132,2649.8,2649.4,0.0271485]
[1729274029609,0.04188252,2649.7,2649.4,0.0271485]
[1729274029966,0.8132,2649.8,2649.4,0.0271485]
[1729274030477,0.04189985,2649.7,2649.4,0.0271485]
[1729274031007,0.8132,2649.8,2649.4,0.0271485]
[1729274031534,0.04189985,2649.7,2649.4,0.0271485]
[1729274032030,0.04181489,2649.6,2649.4,0.0271485]
[1729274032231,0.8132,2649.8,2649.4,0.0271485]
[1729274032419,0.04189985,2649.7,2649.4,0.0271485]
[1729274032632,0.8132,2649.8,2649.4,0.0271485]
[1729274032808,0.04189985,2649.7,2649.4,0.0271485]
[1729274033007,0.8132,2649.8,2649.4,0.0271485]
[1729274033211,0.04189985,2649.7,2649.5,0.02221051]
[1729274033537,0.8132,2649.8,2649.1,0.55]
[1729274033698,0.8132,2649.8,2649.2,0.00435107]
[1729274033699,0.04181489,2649.6,2649.2,0.00435107]
[1729274033898,0.04189985,2649.7,2649.2,0.00435107]
[1729274034128,0.8132,2649.8,2649.3,0.55]
[1729274034329,0.04181489,2649.6,2649.4,0.03343914]
[1729274034537,0.04189985,2649.7,2649.1,0.55]
[1729274034699,0.8132,2649.8,2649.1,0.57697594]
[1729274035155,0.04189985,2649.7,2649.1,0.57697594]
[1729274035622,0.8132,2649.8,2649.1,0.57697594]
[1729274035902,0.04189985,2649.7,2649.1,0.57697594]
[1729274036297,0.8132,2649.8,2649.3,0.55]
[1729274036503,0.8132,2649.8,2649.4,0.03237014]
[1729274036808,0.04188467,2649.7,2649.3,0.03344699]
[1729274037008,0.8132,2649.8,2649.3,0.03344699]
[1729274037216,0.04188467,2649.7,2649.3,0.03344699]
[1729274037541,0.8132,2649.8,2649.3,0.03344699]
[1729274037713,0.04179971,2649.6,2649.3,0.03344699]
[1729274037913,0.04188467,2649.7,2649.3,0.03344699]
[1729274038126,0.8132,2649.8,2649.3,0.03344699]
[1729274038435,0.04188467,2649.7,2649.3,0.03344699]
[1729274038618,0.8132,2649.8,2649.3,0.03344699]
[1729274038816,0.04188467,2649.7,2649.3,0.03344699]
[1729274039019,0.8132,2649.8,2649.3,0.03344699]
[1729274039234,0.04188467,2649.7,2649.3,0.03344699]
[1729274039535,0.8132,2649.8,2649.3,0.03344699]
[1729274039735,0.04179971,2649.6,2649.3,0.03344699]
[1729274039943,0.04188467,2649.7,2649.3,0.03344699]
[1729274040147,0.8132,2649.8,2649.3,0.03344699]
[1729274040355,0.04179971,2649.6,2649.3,0.03344699]
[1729274040659,0.8132,2649.8,2649.3,0.03344699]
[1729274040837,0.04188467,2649.7,2649.3,0.03344699]
[1729274041037,0.8132,2649.8,2649.3,0.03344699]
[1729274041226,0.04188467,2649.7,2649.3,0.03344699]
[1729274041546,0.8132,2649.8,2649.3,0.03344699]
[1729274041754,0.04179971,2649.6,2649.3,0.03344699]
[1729274042050,0.8132,2649.8,2649.3,0.03344699]
[1729274042205,0.04188467,2649.7,2649.3,0.03344699]
[1729274042409,0.8132,2649.8,2649.3,0.03344699]
[1729274042605,0.04188467,2649.7,2649.3,0.03344699]
[1729274042811,0.8132,2649.8,2649.3,0.03344699]
[1729274043133,0.04188467,2649.7,2649.3,0.03344699]
[1729274043628,0.04177805,2649.6,2649.3,0.03344699]
[1729274043954,0.8132,2649.8,2649.3,0.03344699]
[1729274044149,0.04169308,2649.5,2649.3,0.03344699]
[1729274044356,0.8132,2649.8,2649.3,0.03344699]
[1729274044516,0.8132,2649.8,2649.4,0.02693339]
[1729274044715,0.8132,2649.8,2649.1,0.55]
[1729274044915,0.8132,2649.8,2649.5,0.02763994]
[1729274045215,0.8132,2649.8,2649.1,0.55]
[1729274045415,0.8132,2649.8,2649.2,0.02764307]
[1729274052615,0.7743,2649.7,2649.2,0.02764307]
[1729274052822,1.57585509,2649.5,2649.2,0.02764307]
[1729274053045,0.7743,2649.3,2648.8,0.02784886]
[1729274053264,1.20699537,2649.3,2648.8,0.02784886]
[1729274053570,2.00855046,2649.3,2648.8,0.02784886]
[1729274053746,0.7743,2649.2,2648.8,0.02784886]
[1729274053953,2.00855046,2649.3,2648.8,0.02784886]
[1729274053954,2.38905509,2649.1,2648.8,0.02784886]
[1729274054365,0.8132,2649.1,2648.8,0.02784886]
[1729274054537,0.8132,2649.1,2648.2,19.56]
[1729274054538,0.8132,2649.0,2648.2,19.56]
[1729274054737,2.43003109,2649.0,2648.8,0.02228087]
[1729274055046,0.8132,2648.8,2648.2,19.56]
[1729274055244,0.04068625,2648.7,2648.4,0.0260673]
[1729274055454,0.8132,2648.8,2648.4,0.0260673]
[1729274055660,0.04068625,2648.7,2648.3,0.02627581]
[1729274056486,0.04068625,2648.7,2648.3,3.02627581]
[1729274056658,0.04068625,2648.7,2648.3,5.36353339]
[1729274056989,0.8132,2648.8,2648.3,5.36353339]
[1729274059180,0.8132,2648.8,2648.3,2.36353339]
[1729274059384,0.8132,2648.8,2648.3,0.02627581]
[1729274059599,0.03990765,2648.7,2648.3,0.02627581]
[1729274061673,0.03990765,2648.7,2648.0,0.55]
[1729274061873,0.03990765,2648.7,2648.0,0.57889764]
[1729274062065,0.8132,2648.8,2648.0,0.57889764]
[1729274062269,0.03990765,2648.7,2648.0,0.57889764]
[1729274062587,0.803,2648.6,2648.0,0.57889764]
[1729274062964,0.803,2648.6,2648.0,0.02889764]
[1729274063165,0.7737,2648.4,2647.8,0.03467681]
[1729274063593,0.03950894,2648.3,2647.8,0.03467681]
[1729274064897,0.7737,2648.4,2647.8,0.03467681]
[1729274065284,0.7737,2648.4,2647.9,0.55]
[1729274065598,0.03950894,2648.3,2648.0,0.03701973]
[1729274066095,0.7737,2648.4,2648.0,0.03701973]
[1729274067497,0.7737,2648.4,2648.1,3.0]
[1729274067702,0.7737,2648.4,2648.2,0.03703829]
[1729274067904,0.7737,2648.4,2648.1,3.0]
[1729274067905,0.7737,2648.4,2647.8,0.55]
[1729274068091,0.7737,2648.4,2648.0,0.0059272]
[1729274068705,0.7737,2648.4,2647.9,0.00711253]
[1729274072021,0.7737,2648.4,2647.9,0.02670672]
[1729274072382,0.7737,2648.4,2647.9,0.11963726]
[1729274072579,0.7737,2648.4,2648.0,0.55]